fUSD/lending_fUSD_20250211
["ID","MTS","AMOUNT","RATE_DAILY","PERIOD"]
[352720572,1739273432470,-150.88,9.919e-05,2]
[352720573,1739273432479,-150.88,9.922e-05,2]
[352720574,1739273432489,-3923.73,9.942e-05,2]
[352720575,1739273432498,-621.28,9.95e-05,2]
[352720576,1739273432510,-167.62,0.00010021,2]
[352720577,1739273432520,-1200.0,0.00010038,2]
[352720578,1739273432529,-224.71,0.00010049,2]
[352720579,1739273432538,-273.24,0.00010137,2]
[352720580,1739273432548,-300.0,0.00010478,2]
[352720581,1739273432557,-395.12,0.00010478,2]
[352720582,1739273432566,-150.0,0.00010478,2]
[352720583,1739273432575,-300.0,0.00010478,2]
[352720584,1739273432584,-150.0,0.00010478,2]
[352720585,1739273432594,-150.0,0.00010478,2]
[352720586,1739273432603,-150.0,0.00010478,2]
[352720587,1739273432612,-150.0,0.00010478,2]
[352720588,1739273432622,-150.0,0.00010478,2]
[352720589,1739273432631,-150.0,0.00010478,2]
[352720590,1739273432640,-150.0,0.00010478,2]
[352720591,1739273432650,-150.0,0.00010478,2]
[352720592,1739273432659,-150.0,0.00010478,2]
[352720593,1739273432669,-568.71,0.0001048,2]
[352720594,1739273432678,-1000.0,0.00010567,2]
[352720596,1739273432688,-2766.60039515,0.00010685,2]
[352720600,1739273432710,-1340.26031077,0.00010685,2]
[352720604,1739273432743,-952.13929408,0.00010685,2]
[352720605,1739273432752,-493.87,0.00010911,2]
[352720606,1739273432762,-496.05,0.00010916,2]
[352720607,1739273432772,-40.66170592,0.00010924,2]
[352720608,1739273432794,-450.10829408,0.00010924,2]
[352720609,1739273432804,-146.30170892,0.00010924,2]
[352720616,1739273438406,-3.69829108,0.00010924,2]
[352720617,1739273438415,-150.0,0.00010934,2]
[352720618,1739273438427,-496.99,0.00010936,2]
[352720619,1739273438438,-150.0,0.00010938,2]
[352720620,1739273438447,-150.0,0.00010938,2]
[352720621,1739273438457,-69.58507036,0.00010938,2]
[352720622,1739273438500,-80.41492964,0.00010938,2]
[352720623,1739273438514,-150.0,0.00010953,2]
[352720624,1739273438525,-679.90570741,0.00010953,2]
[352720625,1739273438534,-150.0,0.00010955,2]
[352720626,1739273438544,-150.0,0.00010956,2]
[352720627,1739273438554,-150.0,0.00010957,2]
[352720628,1739273438563,-150.0,0.00010957,2]
[352720629,1739273438573,-179.857896,0.00010958,2]
[352720630,1739273438582,-169.482122,0.00010958,2]
[352720631,1739273438591,-155.948279,0.00010958,2]
[352720632,1739273438600,-500.92975285,0.00010958,2]
[352720633,1739273438610,-500.38925308,0.00010958,2]
[352720634,1739273438620,-500.0,0.00010958,2]
[352720635,1739273438630,-500.0,0.00010958,2]
[352720636,1739273438639,-500.0,0.00010958,2]
[352720637,1739273438649,-354.18694769,0.00010958,2]
[352720638,1739273438658,-500.0,0.00010958,2]
[352720639,1739273438668,-371.17080833,0.00010958,2]
[352720642,1739273440192,-128.82919167,0.00010958,2]
[352720643,1739273440201,-141.17085833,0.00010958,2]
[352720644,1739273440213,-358.82914167,0.00010958,2]
[352720645,1739273440223,-274.09560821,0.00010958,2]
[352720646,1739273440233,-500.0,0.00010958,2]
[352720647,1739273440243,-500.0,0.00010958,2]
[352720648,1739273440252,-500.0,0.00010958,2]
[352720649,1739273440262,-500.0,0.00010958,2]
[352720650,1739273440272,-500.0,0.00010958,2]
[352720651,1739273440281,-500.0,0.00010958,2]
[352720652,1739273440291,-500.0,0.00010958,2]
[352720653,1739273440301,-500.0,0.00010958,2]
[352720654,1739273440310,-506.00517149,0.00010958,2]
[352720655,1739273440320,-500.0,0.00010958,2]
[352720656,1739273440329,-500.0,0.00010958,2]
[352720657,1739273440340,-500.0,0.00010958,2]
[352720658,1739273440350,-500.0,0.00010958,2]
[352720659,1739273440360,-503.71,0.00010958,2]
[352720660,1739273440370,-500.0,0.00010958,2]
[352720661,1739273440380,-500.0,0.00010958,2]
[352720662,1739273440389,-500.0,0.00010958,2]
[352720663,1739273440399,-509.4138662,0.00010958,2]
[352720664,1739273440408,-500.0,0.00010958,2]
[352720665,1739273440418,-78.76612259,0.00010958,2]
[352720666,1739273440432,-421.23387741,0.00010958,2]
[352720667,1739273440442,-109.45872096,0.00010958,2]
[352720668,1739273440461,-390.54127904,0.00010958,2]
[352720669,1739273440471,-500.0,0.00010958,2]
[352720670,1739273440480,-516.8390812,0.00010958,2]
[352720671,1739273440489,-500.0,0.00010958,2]
[352720672,1739273440498,-500.0,0.00010958,2]
[352720673,1739273440509,-500.0,0.00010958,2]
[352720674,1739273440519,-529.99,0.00010958,2]
[352720675,1739273440528,-500.0,0.00010958,2]
[352720676,1739273440538,-500.0,0.00010958,2]
[352720677,1739273440547,-500.0,0.00010958,2]
[352720678,1739273440557,-500.0,0.00010958,2]
[352720679,1739273440566,-511.19817686,0.00010958,2]
[352720680,1739273440576,-500.0,0.00010958,2]
[352720681,1739273440585,-500.0,0.00010958,2]
[352720682,1739273440595,-500.0,0.00010958,2]
[352720683,1739273440605,-500.0,0.00010958,2]
[352720684,1739273440615,-500.0,0.00010958,2]
[352720685,1739273440625,-503.84732713,0.00010958,2]
[352720686,1739273440634,-500.0,0.00010958,2]
[352720687,1739273440643,-426.21181362,0.00010958,2]
[352720688,1739273440663,-73.78818638,0.00010958,2]
[352720689,1739273440672,-500.0,0.00010958,2]
[352720690,1739273440682,-388.52231726,0.00010958,2]
[352720691,1739273440691,-497.6851223,0.00010958,2]
[352720692,1739273440701,-500.0,0.00010958,2]
[352720693,1739273440711,-447.15528406,0.00010958,2]
[352720694,1739273440738,-165.51073378,0.00010958,2]
[352720695,1739273440748,-500.0,0.00010958,2]
[352720696,1739273440758,-500.0,0.00010958,2]
[352720697,1739273440769,-500.0,0.00010958,2]
[352720698,1739273440778,-500.0,0.00010958,2]
[352720699,1739273440788,-500.0,0.00010958,2]
[352720700,1739273440797,-500.0,0.00010958,2]
[352720701,1739273440806,-500.0,0.00010958,2]
[352720702,1739273440816,-500.0,0.00010958,2]
[352720703,1739273440825,-500.0,0.00010958,2]
[352720704,1739273440835,-500.0,0.00010958,2]
[352720705,1739273440844,-500.0,0.00010958,2]
[352720706,1739273440854,-500.0,0.00010958,2]
[352720707,1739273440863,-500.0,0.00010958,2]
[352720708,1739273440872,-340.45106559,0.00010958,2]
[352720709,1739273440882,-500.0,0.00010958,2]
[352720710,1739273440891,-500.0,0.00010958,2]
[352720711,1739273440901,-500.0,0.00010958,2]
[352720712,1739273440910,-500.0,0.00010958,2]
[352720713,1739273440919,-500.0,0.00010958,2]
[352720714,1739273440929,-500.0,0.00010958,2]
[352720715,1739273440938,-500.0,0.00010958,2]
[352720716,1739273440948,-500.0,0.00010958,2]
[352720717,1739273440958,-500.0,0.00010958,2]
[352720718,1739273440968,-303.75032911,0.00010958,2]
[352720719,1739273440977,-500.0,0.00010958,2]
[352720720,1739273440987,-500.0,0.00010958,2]
[352720721,1739273440996,-500.0,0.00010958,2]
[352720722,1739273441006,-500.0,0.00010958,2]
[352720723,1739273441016,-500.0,0.00010958,2]
[352720724,1739273441025,-500.0,0.00010958,2]
[352720725,1739273441034,-500.0,0.00010958,2]
[352720726,1739273441044,-500.0,0.00010958,2]
[352720727,1739273441054,-500.0,0.00010958,2]
[352720728,1739273441064,-500.0,0.00010958,2]
[352720729,1739273441073,-500.0,0.00010958,2]
[352720730,1739273441082,-500.0,0.00010958,2]
[352720731,1739273441091,-500.0,0.00010958,2]
[352720732,1739273441101,-644.94,0.00010958,2]
[352720733,1739273441110,-542.68,0.00010958,2]
[352720734,1739273441119,-500.0,0.00010958,2]
[352720735,1739273441129,-613.43816393,0.00010958,2]
[352720736,1739273441139,-500.0,0.00010958,2]
[352720737,1739273441148,-500.0,0.00010958,2]
[352720738,1739273441158,-500.0,0.00010958,2]
[352720739,1739273441167,-157.734459,0.00010958,2]
[352720740,1739273441177,-500.0,0.00010958,2]
[352720741,1739273441186,-500.0,0.00010958,2]
[352720742,1739273441195,-500.0,0.00010958,2]
[352720743,1739273441205,-261.04434214,0.00010958,2]
[352720744,1739273441214,-500.0,0.00010958,2]
[352720745,1739273441223,-500.0,0.00010958,2]
[352720746,1739273441233,-500.0,0.00010958,2]
[352720747,1739273441242,-500.0,0.00010958,2]
[352720748,1739273441251,-500.0,0.00010958,2]
[352720749,1739273441261,-500.0,0.00010958,2]
[352720750,1739273441270,-500.0,0.00010958,2]
[352720751,1739273441280,-500.0,0.00010958,2]
[352720752,1739273441289,-416.91039685,0.00010958,2]
[352720753,1739273441298,-500.0,0.00010958,2]
[352720754,1739273441307,-500.0,0.00010958,2]
[352720755,1739273441316,-500.0,0.00010958,2]
[352720756,1739273441326,-500.0,0.00010958,2]
[352720757,1739273441335,-500.0,0.00010958,2]
[352720758,1739273441344,-500.0,0.00010958,2]
[352720759,1739273441354,-500.0,0.00010958,2]
[352720760,1739273441363,-500.0,0.00010958,2]
[352720761,1739273441372,-500.0,0.00010958,2]
[352720762,1739273441382,-578.8840968,0.00010958,2]
[352720763,1739273441391,-500.0,0.00010958,2]
[352720764,1739273441400,-500.0,0.00010958,2]
[352720765,1739273441410,-500.0,0.00010958,2]
[352720766,1739273441419,-500.0,0.00010958,2]
[352720767,1739273441431,-114.19438531,0.00010958,2]
[352720768,1739273441447,-385.80561469,0.00010958,2]
[352720769,1739273441456,-500.0,0.00010958,2]
[352720770,1739273441467,-500.0,0.00010958,2]
[352720771,1739273441476,-536.56,0.00010958,2]
[352720772,1739273441486,-500.0,0.00010958,2]
[352720773,1739273441496,-500.0,0.00010958,2]
[352720774,1739273441505,-500.0,0.00010958,2]
[352720775,1739273441516,-500.0,0.00010958,2]
[352720776,1739273441526,-500.0,0.00010958,2]
[352720777,1739273441535,-500.0,0.00010958,2]
[352720778,1739273441545,-500.0,0.00010958,2]
[352720779,1739273441554,-500.0,0.00010958,2]
[352720780,1739273441564,-500.0,0.00010958,2]
[352720781,1739273441574,-500.0,0.00010958,2]
[352720782,1739273441583,-500.0,0.00010958,2]
[352720783,1739273441593,-500.0,0.00010958,2]
[352720784,1739273441602,-200.0,0.00010958,2]
[352720785,1739273441612,-500.0,0.00010958,2]
[352720786,1739273441622,-500.0,0.00010958,2]
[352720787,1739273441631,-204.41726877,0.00010958,2]
[352720788,1739273441641,-500.0,0.00010958,2]
[352720789,1739273441650,-500.0,0.00010958,2]
[352720790,1739273441660,-500.0,0.00010958,2]
[352720791,1739273441669,-500.0,0.00010958,2]
[352720792,1739273441679,-1058.41,0.00010958,2]
[352720793,1739273441688,-500.0,0.00010958,2]
[352720794,1739273441698,-500.0,0.00010958,2]
[352720795,1739273441708,-501.90158711,0.00010958,2]
[352720796,1739273441718,-500.0,0.00010958,2]
[352720797,1739273441727,-500.0,0.00010958,2]
[352720798,1739273441737,-301.96553199,0.00010958,2]
[352720799,1739273441759,-198.03446801,0.00010958,2]
[352720800,1739273441769,-220.51342902,0.00010958,2]
[352720801,1739273441800,-279.48657098,0.00010958,2]
[352720802,1739273441810,-98.39845712,0.00010958,2]
[352720803,1739273442608,-401.60154288,0.00010958,2]
[352720804,1739273442618,-500.0,0.00010958,2]
[352720805,1739273442628,-500.0,0.00010958,2]
[352720806,1739273442638,-500.0,0.00010958,2]
[352720807,1739273442647,-500.0,0.00010958,2]
[352720808,1739273442657,-837.98,0.00010958,2]
[352720809,1739273442666,-877.46,0.00010958,2]
[352720810,1739273442676,-500.0,0.00010958,2]
[352720811,1739273442685,-1010.79,0.00010958,2]
[352720812,1739273442695,-500.0,0.00010958,2]
[352720813,1739273442704,-500.0,0.00010958,2]
[352720814,1739273442713,-500.0,0.00010958,2]
[352720815,1739273442722,-500.0,0.00010958,2]
[352720816,1739273442732,-500.0,0.00010958,2]
[352720817,1739273442742,-500.0,0.00010958,2]
[352720818,1739273442751,-500.0,0.00010958,2]
[352720819,1739273442761,-562.23,0.00010958,2]
[352720820,1739273442771,-500.0,0.00010958,2]
[352720821,1739273442781,-500.0,0.00010958,2]
[352720822,1739273442790,-500.0,0.00010958,2]
[352720823,1739273442799,-500.0,0.00010958,2]
[352720824,1739273442809,-500.0,0.00010958,2]
[352720825,1739273442819,-500.0,0.00010958,2]
[352720826,1739273442828,-500.0,0.00010958,2]
[352720827,1739273442838,-500.0,0.00010958,2]
[352720828,1739273442847,-502.29314947,0.00010958,2]
[352720829,1739273442856,-500.0,0.00010958,2]
[352720830,1739273442866,-500.0,0.00010958,2]
[352720831,1739273442875,-500.0,0.00010958,2]
[352720832,1739273442885,-1181.25,0.00010958,2]
[352720833,1739273442894,-797.28,0.00010958,2]
[352720834,1739273442904,-500.0,0.00010958,2]
[352720835,1739273442914,-500.0,0.00010958,2]
[352720836,1739273442923,-500.0,0.00010958,2]
[352720837,1739273442933,-500.0,0.00010958,2]
[352720838,1739273442942,-500.0,0.00010958,2]
[352720839,1739273442952,-500.0,0.00010958,2]
[352720840,1739273442962,-500.0,0.00010958,2]
[352720841,1739273442971,-500.0,0.00010958,2]
[352720842,1739273442981,-500.0,0.00010958,2]
[352720844,1739273442991,-500.0,0.00010958,2]
[352720845,1739273443000,-500.0,0.00010958,2]
[352720846,1739273443009,-500.0,0.00010958,2]
[352720847,1739273443018,-500.0,0.00010958,2]
[352720848,1739273443028,-653.84,0.00010958,2]
[352720849,1739273443038,-500.0,0.00010958,2]
[352720850,1739273443048,-500.0,0.00010958,2]
[352720851,1739273443057,-1054.53,0.00010958,2]
[352720852,1739273443067,-500.0,0.00010958,2]
[352720855,1739273443077,-892.11,0.00010958,2]
[352720858,1739273443087,-500.0,0.00010958,2]
[352720859,1739273443096,-500.0,0.00010958,2]
[352720861,1739273443106,-500.0,0.00010958,2]
[352720862,1739273443115,-887.86,0.00010958,2]
[352720863,1739273443125,-578.60657847,0.00010958,2]
[352720864,1739273443134,-1035.31,0.00010958,2]
[352720865,1739273443144,-500.0,0.00010958,2]
[352720866,1739273443154,-500.0,0.00010958,2]
[352720867,1739273443163,-500.0,0.00010958,2]
[352720868,1739273443173,-818.98,0.00010958,2]
[352720869,1739273443182,-500.0,0.00010958,2]
[352720870,1739273443191,-1133.15,0.00010958,2]
[352720871,1739273443201,-500.0,0.00010958,2]
[352720872,1739273443211,-500.0,0.00010958,2]
[352720873,1739273443220,-1072.93,0.00010958,2]
[352720874,1739273443230,-506.14970224,0.00010958,2]
[352720875,1739273443239,-502.7,0.00010958,2]
[352720876,1739273443249,-500.0,0.00010958,2]
[352720877,1739273443258,-645.97,0.00010958,2]
[352720878,1739273443268,-500.0,0.00010958,2]
[352720879,1739273443278,-690.33,0.00010958,2]
[352720880,1739273443287,-500.0,0.00010958,2]
[352720881,1739273443296,-500.0,0.00010958,2]
[352720882,1739273443305,-500.0,0.00010958,2]
[352720883,1739273443315,-500.0,0.00010958,2]
[352720884,1739273443324,-500.0,0.00010958,2]
[352720885,1739273443333,-826.54,0.00010958,2]
[352720886,1739273443343,-353.25319414,0.00010958,2]
[352720887,1739273443358,-146.74680586,0.00010958,2]
[352720888,1739273443367,-537.45,0.00010958,2]
[352720889,1739273443378,-724.53,0.00010958,2]
[352720890,1739273443388,-860.31,0.00010958,2]
[352720891,1739273443397,-500.0,0.00010958,2]
[352720892,1739273443406,-504.42717946,0.00010958,2]
[352720893,1739273443416,-500.0,0.00010958,2]
[352720894,1739273443426,-500.0,0.00010958,2]
[352720895,1739273443440,-500.0,0.00010958,2]
[352720896,1739273443449,-500.0,0.00010958,2]
[352720897,1739273443459,-504.92246659,0.00010958,2]
[352720898,1739273443469,-778.72,0.00010958,2]
[352720899,1739273443479,-188.45840431,0.00010958,2]
[352720900,1739273443559,-356.23159569,0.00010958,2]
[352720901,1739273443568,-500.0,0.00010958,2]
[352720902,1739273443578,-500.0,0.00010958,2]
[352720903,1739273443587,-500.0,0.00010958,2]
[352720904,1739273443597,-500.0,0.00010958,2]
[352720906,1739273443607,-626.86,0.00010958,2]
[352720908,1739273443616,-945.85,0.00010958,2]
[352720910,1739273443626,-868.43,0.00010958,2]
[352720912,1739273443635,-500.0,0.00010958,2]
[352720914,1739273443643,-500.0,0.00010958,2]
[352720916,1739273443653,-500.0,0.00010958,2]
[352720918,1739273443662,-500.0,0.00010958,2]
[352720920,1739273443671,-502.63037334,0.00010958,2]
[352720922,1739273443682,-576.06,0.00010958,2]
[352720924,1739273443691,-500.0,0.00010958,2]
[352720926,1739273443701,-500.0,0.00010958,2]
[352720928,1739273443710,-488.6398711,0.00010958,2]
[352720931,1739273443719,-500.0,0.00010958,2]
[352720933,1739273443729,-500.0,0.00010958,2]
[352720935,1739273443738,-500.0,0.00010958,2]
[352720937,1739273443747,-933.08,0.00010958,2]
[352720939,1739273443757,-539.17,0.00010958,2]
[352720941,1739273443766,-500.0,0.00010958,2]
[352720943,1739273443775,-295.00741837,0.00010958,2]
[352720945,1739273443784,-500.0,0.00010958,2]
[352720946,1739273443794,-500.0,0.00010958,2]
[352720947,1739273443803,-500.0,0.00010958,2]
[352720948,1739273443812,-500.0,0.00010958,2]
[352720949,1739273443821,-500.0,0.00010958,2]
[352720951,1739273443831,-500.0,0.00010958,2]
[352720953,1739273443840,-500.0,0.00010958,2]
[352720955,1739273443850,-500.0,0.00010958,2]
[352720956,1739273443859,-500.0,0.00010958,2]
[352720957,1739273443868,-505.09,0.00010958,2]
[352720958,1739273443878,-500.0,0.00010958,2]
[352720959,1739273443887,-667.64,0.00010958,2]
[352720960,1739273443896,-500.0,0.00010958,2]
[352720961,1739273443906,-500.0,0.00010958,2]
[352720962,1739273443917,-504.52476255,0.00010958,2]
[352720963,1739273443926,-500.0,0.00010958,2]
[352720964,1739273443935,-500.0,0.00010958,2]
[352720965,1739273443944,-500.0,0.00010958,2]
[352720966,1739273443953,-1003.84,0.00010958,2]
[352720967,1739273443962,-636.14,0.00010958,2]
[352720968,1739273443971,-1099.52,0.00010958,2]
[352720969,1739273443981,-500.0,0.00010958,2]
[352720970,1739273443990,-894.77,0.00010958,2]
[352720971,1739273443999,-500.0,0.00010958,2]
[352720972,1739273444008,-500.0,0.00010958,2]
[352720973,1739273444017,-500.0,0.00010958,2]
[352720974,1739273444027,-536.56,0.00010958,2]
[352720975,1739273444036,-500.0,0.00010958,2]
[352720976,1739273444045,-500.0,0.00010958,2]
[352720977,1739273444055,-500.0,0.00010958,2]
[352720978,1739273444064,-500.0,0.00010958,2]
[352720979,1739273444073,-1198.61,0.00010958,2]
[352720980,1739273444082,-500.0,0.00010958,2]
[352720981,1739273444091,-660.93,0.00010958,2]
[352720982,1739273444100,-742.8,0.00010958,2]
[352720983,1739273444110,-1129.4,0.00010958,2]
[352720984,1739273444119,-500.0,0.00010958,2]
[352720985,1739273444128,-845.95,0.00010958,2]
[352720986,1739273444136,-500.0,0.00010958,2]
[352720987,1739273444145,-891.91,0.00010958,2]
[352720988,1739273444154,-500.0,0.00010958,2]
[352720989,1739273444163,-500.0,0.00010958,2]
[352720990,1739273444172,-539.83,0.00010958,2]
[352720991,1739273444182,-500.0,0.00010958,2]
[352720992,1739273444191,-500.0,0.00010958,2]
[352720993,1739273444200,-500.0,0.00010958,2]
[352720994,1739273444209,-500.0,0.00010958,2]
[352720995,1739273444218,-500.0,0.00010958,2]
[352720996,1739273444227,-1356.0,0.00010958,2]
[352720997,1739273444236,-500.0,0.00010958,2]
[352720998,1739273444245,-500.0,0.00010958,2]
[352720999,1739273444255,-500.0,0.00010958,2]
[352721000,1739273444264,-500.0,0.00010958,2]
[352721001,1739273444274,-500.0,0.00010958,2]
[352721002,1739273444283,-500.0,0.00010958,2]
[352721003,1739273444292,-500.0,0.00010958,2]
[352721004,1739273444301,-500.0,0.00010958,2]
[352721005,1739273444310,-500.0,0.00010958,2]
[352721006,1739273444321,-1160.08,0.00010958,2]
[352721007,1739273444330,-810.26,0.00010958,2]
[352721008,1739273444339,-500.0,0.00010958,2]
[352721009,1739273444349,-500.0,0.00010958,2]
[352721010,1739273444358,-500.0,0.00010958,2]
[352721011,1739273444367,-863.06,0.00010958,2]
[352721012,1739273444378,-500.0,0.00010958,2]
[352721013,1739273444387,-519.13,0.00010958,2]
[352721014,1739273444395,-500.0,0.00010958,2]
[352721015,1739273444404,-500.0,0.00010958,2]
[352721016,1739273444413,-500.0,0.00010958,2]
[352721017,1739273444423,-500.0,0.00010958,2]
[352721018,1739273444435,-500.0,0.00010958,2]
[352721019,1739273444445,-616.01,0.00010958,2]
[352721020,1739273444454,-500.0,0.00010958,2]
[352721021,1739273444462,-500.0,0.00010958,2]
[352721022,1739273444473,-504.66020188,0.00010958,2]
[352721023,1739273444482,-500.0,0.00010958,2]
[352721024,1739273444491,-500.0,0.00010958,2]
[352721025,1739273444500,-765.84,0.00010958,2]
[352721026,1739273444511,-753.81,0.00010958,2]
[352721027,1739273444520,-894.48,0.00010958,2]
[352721028,1739273444529,-500.0,0.00010958,2]
[352721029,1739273444539,-500.0,0.00010958,2]
[352721030,1739273444548,-500.0,0.00010958,2]
[352721031,1739273444557,-500.0,0.00010958,2]
[352721032,1739273444566,-500.0,0.00010958,2]
[352721033,1739273444575,-1218.14,0.00010958,2]
[352721034,1739273444583,-500.0,0.00010958,2]
[352721035,1739273444593,-939.16,0.00010958,2]
[352721036,1739273444602,-517.43,0.00010958,2]
[352721037,1739273444611,-500.0,0.00010958,2]
[352721038,1739273444620,-500.0,0.00010958,2]
[352721039,1739273444629,-500.0,0.00010958,2]
[352721040,1739273444639,-200.0,0.00010958,2]
[352721041,1739273444647,-581.78,0.00010958,2]
[352721042,1739273444657,-500.0,0.00010958,2]
[352721043,1739273444666,-500.0,0.00010958,2]
[352721044,1739273444676,-1300.26,0.00010958,2]
[352721045,1739273444686,-748.46,0.00010958,2]
[352721046,1739273444695,-1253.56,0.00010958,2]
[352721047,1739273444704,-500.0,0.00010958,2]
[352721048,1739273444714,-670.64,0.00010958,2]
[352721049,1739273444723,-1245.13,0.00010958,2]
[352721050,1739273444733,-597.4,0.00010958,2]
[352721051,1739273444742,-768.96,0.00010958,2]
[352721052,1739273444752,-500.0,0.00010958,2]
[352721053,1739273444761,-500.0,0.00010958,2]
[352721054,1739273444771,-972.45,0.00010958,2]
[352721055,1739273444780,-531.72,0.00010958,2]
[352721056,1739273444789,-660.56,0.00010958,2]
[352721057,1739273444799,-1303.35,0.00010958,2]
[352721058,1739273444808,-500.0,0.00010958,2]
[352721059,1739273444818,-500.0,0.00010958,2]
[352721060,1739273444827,-500.0,0.00010958,2]
[352721061,1739273444837,-500.0,0.00010958,2]
[352721062,1739273444846,-1158.21,0.00010958,2]
[352721063,1739273444855,-500.0,0.00010958,2]
[352721064,1739273444865,-221.44,0.00010958,2]
[352721065,1739273444874,-500.0,0.00010958,2]
[352721066,1739273444884,-500.0,0.00010958,2]
[352721067,1739273444893,-500.0,0.00010958,2]
[352721068,1739273444903,-1352.31,0.00010958,2]
[352721069,1739273444912,-500.0,0.00010958,2]
[352721070,1739273444921,-500.0,0.00010958,2]
[352721071,1739273444930,-964.57,0.00010958,2]
[352721072,1739273444939,-500.0,0.00010958,2]
[352721073,1739273444948,-500.0,0.00010958,2]
[352721074,1739273444957,-500.0,0.00010958,2]
[352721075,1739273444966,-500.0,0.00010958,2]
[352721076,1739273444975,-500.0,0.00010958,2]
[352721077,1739273444985,-982.18,0.00010958,2]
[352721078,1739273444994,-500.0,0.00010958,2]
[352721079,1739273445003,-1253.76,0.00010958,2]
[352721080,1739273445012,-500.0,0.00010958,2]
[352721081,1739273445021,-1318.68,0.00010958,2]
[352721082,1739273445030,-500.0,0.00010958,2]
[352721083,1739273445040,-500.0,0.00010958,2]
[352721084,1739273445049,-754.64,0.00010958,2]
[352721085,1739273445058,-500.0,0.00010958,2]
[352721086,1739273445067,-500.0,0.00010958,2]
[352721087,1739273445077,-1230.38,0.00010958,2]
[352721088,1739273445086,-500.0,0.00010958,2]
[352721089,1739273445096,-513.46412563,0.00010958,2]
[352721090,1739273445105,-575.78,0.00010958,2]
[352721091,1739273445115,-749.75,0.00010958,2]
[352721092,1739273445124,-2623.63,0.00010958,2]
[352721093,1739273445133,-500.0,0.00010958,2]
[352721094,1739273445143,-500.0,0.00010958,2]
[352721095,1739273445152,-500.0,0.00010958,2]
[352721096,1739273445161,-1437.33,0.00010958,2]
[352721097,1739273445171,-500.0,0.00010958,2]
[352721098,1739273445180,-500.0,0.00010958,2]
[352721099,1739273445189,-500.0,0.00010958,2]
[352721100,1739273445199,-690.79,0.00010958,2]
[352721101,1739273445208,-500.0,0.00010958,2]
[352721102,1739273445217,-687.94,0.00010958,2]
[352721103,1739273445227,-500.0,0.00010958,2]
[352721104,1739273445236,-500.0,0.00010958,2]
[352721105,1739273445245,-1656.51,0.00010958,2]
[352721106,1739273445254,-500.0,0.00010958,2]
[352721107,1739273445263,-1225.91,0.00010958,2]
[352721108,1739273445273,-981.87,0.00010958,2]
[352721109,1739273445282,-500.0,0.00010958,2]
[352721110,1739273445292,-2410.7,0.00010958,2]
[352721111,1739273445303,-566.23,0.00010958,2]
[352721112,1739273445312,-500.0,0.00010958,2]
[352721113,1739273445322,-1823.52,0.00010958,2]
[352721114,1739273445331,-500.0,0.00010958,2]
[352721115,1739273445341,-500.0,0.00010958,2]
[352721116,1739273445350,-2546.75,0.00010958,2]